bitfinex/quotes_BTCUSD_20241103
["timestamp","ask_amount","ask_price","bid_price","bid_amount"]
[1730633341244,0.02663835,68495.0,68494.0,0.124538]
[1730633341656,0.02695735,68495.0,68494.0,0.124538]
[1730633341916,0.013319,68495.0,68494.0,0.124538]
[1730633342138,0.02695856,68495.0,68494.0,0.124538]
[1730633344382,0.02663956,68495.0,68494.0,0.124538]
[1730633346657,0.013,68495.0,68494.0,0.124538]
[1730633346823,0.02664232,68495.0,68494.0,0.124538]
[1730633349214,0.013,68495.0,68494.0,0.124538]
[1730633349465,0.02664524,68495.0,68494.0,0.124538]
[1730633353039,0.02665165,68495.0,68494.0,0.124538]
[1730633353255,0.02697065,68495.0,68494.0,0.124538]
[1730633353495,0.02665324,68495.0,68494.0,0.124538]
[1730633354381,0.02665324,68495.0,68494.0,0.13024493]
[1730633356556,0.02664974,68495.0,68494.0,0.13024278]
[1730633357302,0.02664974,68495.0,68494.0,0.124538]
[1730633357983,0.013,68495.0,68494.0,0.124538]
[1730633358211,0.02664936,68495.0,68494.0,0.13024276]
[1730633361087,0.013,68495.0,68494.0,0.13024218]
[1730633361319,0.0266477,68495.0,68494.0,0.13024218]
[1730633364718,0.013,68495.0,68494.0,0.124538]
[1730633364926,0.02664692,68495.0,68494.0,0.13024601]
[1730633365168,0.02664692,68495.0,68494.0,0.124538]
[1730633365169,0.02664691,68495.0,68494.0,0.124538]
[1730633372170,0.02665443,68495.0,68494.0,0.124538]
[1730633374510,0.02697343,68495.0,68494.0,0.13024826]
[1730633375115,0.02665443,68495.0,68494.0,0.13024826]
[1730633376124,0.026657,68495.0,68494.0,0.13024853]
[1730633379370,0.013,68495.0,68494.0,0.13024853]
[1730633379573,0.02665977,68495.0,68494.0,0.13024933]
[1730633382570,0.02665977,68495.0,68494.0,0.15943933]
[1730633382781,0.02665977,68495.0,68494.0,0.13024933]
[1730633383201,0.013,68495.0,68494.0,0.13025508]
[1730633383408,0.0266629,68495.0,68494.0,0.13025508]
[1730633384069,0.0266629,68495.0,68494.0,0.29905212]
[1730633386796,0.0266629,68495.0,68494.0,0.29905123]
[1730633386797,0.02666098,68495.0,68494.0,0.29905123]
[1730633388822,0.02666098,68495.0,68494.0,0.30405123]
[1730633389277,0.02665845,68495.0,68494.0,0.30405123]
[1730633389503,0.02665621,68495.0,68494.0,0.30405123]
[1730633389728,0.013,68495.0,68494.0,0.30405123]
[1730633390462,0.013,68495.0,68494.0,0.30404919]
[1730633393948,0.013,68495.0,68494.0,0.29833504]
[1730633394189,0.013,68495.0,68494.0,0.30404642]
[1730633394892,0.21902447,68505.0,68497.0,0.0495]
[1730633395111,0.01364855,68504.0,68499.0,0.0495]
[1730633395324,0.21902447,68505.0,68500.0,0.00571138]
[1730633395325,0.01364855,68503.0,68500.0,0.00571138]
[1730633395579,0.01364855,68502.0,68501.0,0.00571138]
[1730633396039,0.01364855,68502.0,68501.0,0.00863064]
[1730633396261,0.01364855,68502.0,68501.0,0.05421138]
[1730633396723,0.01364855,68502.0,68501.0,0.30252765]
[1730633396952,0.01364855,68502.0,68501.0,0.29960842]
[1730633397623,0.21902447,68511.0,68503.0,0.0485]
[1730633397839,0.01364617,68510.0,68504.0,0.15150502]
[1730633398095,0.01364617,68509.0,68505.0,0.00291911]
[1730633398308,0.01364617,68508.0,68506.0,0.19429704]
[1730633398512,0.01364617,68507.0,68506.0,0.21729704]
[1730633400249,0.01364295,68507.0,68506.0,0.21729704]
[1730633400740,0.02564295,68507.0,68506.0,0.21729704]
[1730633400971,0.012,68507.0,68506.0,0.21729704]
[1730633401196,0.02564318,68507.0,68506.0,0.21729704]
[1730633401426,0.02596218,68507.0,68506.0,0.21729704]
[1730633402141,0.02564318,68507.0,68506.0,0.21729704]
[1730633402812,0.03964318,68507.0,68506.0,0.21729704]
[1730633403499,0.03964318,68507.0,68501.0,0.08019069]
[1730633403725,0.000319,68503.0,68502.0,0.21729704]
[1730633403946,0.01396097,68503.0,68502.0,0.21729704]
[1730633404595,0.000319,68499.0,68498.0,0.00357937]
[1730633404815,0.000319,68499.0,68494.0,0.001638]
[1730633404816,0.000319,68498.0,68494.0,0.001638]
[1730633405055,0.01364197,68497.0,68496.0,0.21902447]
[1730633405261,0.000319,68495.0,68494.0,0.001638]
[1730633405462,0.000319,68495.0,68494.0,0.00735011]
[1730633405684,0.1264,68504.0,68494.0,0.01104306]
[1730633405685,0.000319,68500.0,68494.0,0.01104306]
[1730633405927,0.02064223,68499.0,68495.0,0.00571211]
[1730633406136,0.01364223,68498.0,68496.0,0.00571211]
[1730633406349,0.007,68499.0,68497.0,0.00571211]
[1730633406569,0.007,68499.0,68498.0,0.00571211]
[1730633406739,0.02064342,68499.0,68498.0,0.00571211]
[1730633407155,0.02064342,68499.0,68498.0,0.00571217]
[1730633407156,0.01364341,68499.0,68498.0,0.00571217]
[1730633407355,0.01364341,68499.0,68495.0,0.00571217]
[1730633407562,0.01764341,68499.0,68494.0,0.001638]
[1730633407722,0.01364341,68498.0,68495.0,0.0057126]
[1730633407917,0.004,68499.0,68494.0,0.001638]
[1730633407918,0.01364341,68497.0,68494.0,0.001638]
[1730633408118,0.01364341,68496.0,68495.0,0.0057126]
[1730633408525,0.01364341,68496.0,68494.0,0.001638]
[1730633408747,0.01364341,68495.0,68494.0,0.003638]
[1730633408948,0.01364341,68495.0,68494.0,0.076838]
[1730633409156,0.01364341,68495.0,68494.0,0.074838]
[1730633409991,0.01364341,68495.0,68494.0,0.077838]
[1730633410368,0.01364341,68495.0,68494.0,0.074838]
[1730633410935,0.01496241,68495.0,68494.0,0.074838]
[1730633411139,0.01796241,68495.0,68494.0,0.074838]
[1730633411928,0.01796241,68495.0,68494.0,0.08055149]
[1730633412153,0.01796241,68495.0,68494.0,0.08055144]
[1730633412380,0.01796241,68495.0,68494.0,0.08055177]
[1730633412582,0.01796241,68495.0,68494.0,0.074838]
[1730633413529,0.01796241,68495.0,68494.0,0.08055198]
[1730633414176,0.004319,68495.0,68494.0,0.080552]
[1730633414403,0.01796492,68495.0,68494.0,0.080552]
[1730633414615,0.01764592,68495.0,68494.0,0.080552]
[1730633415045,0.01764592,68495.0,68494.0,0.08347163]
[1730633416371,0.01764592,68495.0,68494.0,0.07775763]
[1730633416580,0.01764592,68495.0,68494.0,0.08347146]
[1730633416780,0.01764592,68495.0,68494.0,0.07775763]
[1730633416997,0.01764592,68495.0,68494.0,0.08347149]
[1730633417200,0.01764592,68495.0,68494.0,0.07775763]
[1730633417649,0.01764454,68495.0,68494.0,0.074838]
[1730633418407,0.004,68495.0,68494.0,0.074838]
[1730633419823,0.01764322,68495.0,68494.0,0.074838]
[1730633420019,0.01796222,68495.0,68494.0,0.074838]
[1730633421454,0.01796222,68495.0,68494.0,0.079838]
[1730633421660,0.01764322,68495.0,68494.0,0.079838]
[1730633421873,0.004,68495.0,68494.0,0.079838]
[1730633422081,0.004,68495.0,68494.0,0.074838]
[1730633422296,0.004,68495.0,68494.0,0.079838]
[1730633422532,0.01764199,68495.0,68494.0,0.079838]
[1730633423249,0.004,68495.0,68494.0,0.079838]
[1730633427273,0.004,68495.0,68494.0,0.08275761]
[1730633427468,0.004,68495.0,68494.0,0.079838]
[1730633428058,0.20834347,68503.0,68494.0,0.079838]
[1730633428464,0.1264,68504.0,68494.0,0.079838]
[1730633428664,0.1264,68504.0,68494.0,0.074838]
[1730633429336,0.001,68503.0,68494.0,0.074838]
[1730633429905,0.1264,68504.0,68495.0,0.00571416]
[1730633430108,0.1264,68504.0,68494.0,0.074838]
[1730633430337,0.1274,68504.0,68494.0,0.074838]
[1730633430736,0.01364748,68503.0,68494.0,0.074838]
[1730633430962,0.01364748,68502.0,68494.0,0.074838]
[1730633431205,0.01364748,68501.0,68494.0,0.074838]
[1730633431410,0.01364748,68500.0,68494.0,0.074838]
[1730633431597,0.01364748,68499.0,68494.0,0.074838]
[1730633431800,0.01364748,68498.0,68494.0,0.074838]
[1730633432006,0.01364748,68497.0,68494.0,0.074838]
[1730633432224,0.01364748,68496.0,68494.0,0.074838]
[1730633432414,0.01364748,68495.0,68494.0,0.074838]
[1730633432862,0.15053223,68495.0,68494.0,0.074838]
[1730633433021,0.13684748,68495.0,68494.0,0.074838]
[1730633433227,0.2978696,68495.0,68494.0,0.074838]
[1730633433424,0.38516925,68495.0,68494.0,0.074838]
[1730633434036,0.38616925,68495.0,68494.0,0.074838]
[1730633434262,0.44461978,68495.0,68494.0,0.074838]
[1730633434464,0.44361978,68495.0,68494.0,0.074838]
[1730633434698,0.34810145,68495.0,68494.0,0.074838]
[1730633434899,0.35010145,68495.0,68494.0,0.074838]
[1730633435071,0.28464452,68495.0,68494.0,0.074838]
[1730633435321,0.33305182,68495.0,68494.0,0.074838]
[1730633435497,0.40149066,68495.0,68494.0,0.074838]
[1730633435701,0.40147952,68495.0,68494.0,0.074838]
[1730633435911,0.39847952,68495.0,68494.0,0.074838]
[1730633436254,0.40047952,68495.0,68494.0,0.074838]
[1730633436505,0.40247952,68495.0,68494.0,0.074838]
[1730633436702,0.40347952,68495.0,68494.0,0.074838]
[1730633437125,0.40047952,68495.0,68494.0,0.074838]
[1730633437603,0.33504068,68495.0,68494.0,0.074838]
[1730633437815,0.28763338,68495.0,68494.0,0.074838]
[1730633438238,0.35307222,68495.0,68494.0,0.074838]
[1730633438444,0.29263338,68495.0,68494.0,0.074838]
[1730633439098,0.28263338,68495.0,68494.0,0.074838]
[1730633439305,0.28262079,68495.0,68494.0,0.074838]
[1730633439514,0.3382131,68495.0,68494.0,0.074838]
[1730633439726,0.39263458,68495.0,68494.0,0.074838]
[1730633440146,0.38663458,68495.0,68494.0,0.074838]
[1730633440389,0.34304227,68495.0,68494.0,0.074838]
[1730633440588,0.40063458,68495.0,68494.0,0.074838]
[1730633440793,0.39463458,68495.0,68494.0,0.074838]
[1730633440996,0.3402131,68495.0,68494.0,0.074838]
[1730633441258,0.3542131,68495.0,68494.0,0.074838]
[1730633441462,0.31062079,68495.0,68494.0,0.074838]
[1730633444889,0.26412079,68495.0,68494.0,0.074838]
[1730633446228,0.25049704,68495.0,68494.0,0.074838]
[1730633446448,0.2641161,68495.0,68494.0,0.074838]
[1730633449852,0.25049704,68495.0,68494.0,0.074838]
[1730633450085,0.11832319,68495.0,68494.0,0.074838]
[1730633450301,0.04162319,68495.0,68494.0,0.074838]
[1730633453509,0.04162686,68495.0,68494.0,0.074838]
[1730633457091,0.04163066,68495.0,68494.0,0.074838]
[1730633457751,0.04163312,68495.0,68494.0,0.074838]
[1730633458202,0.11763312,68495.0,68494.0,0.074838]
[1730633458674,0.11763594,68495.0,68494.0,0.074838]
[1730633460684,0.11764277,68495.0,68494.0,0.074838]
[1730633462229,0.35283227,68495.0,68494.0,0.074838]
[1730633462443,0.33883227,68495.0,68494.0,0.074838]
[1730633463098,0.33884518,68495.0,68494.0,0.074838]
[1730633463363,0.40888518,68495.0,68494.0,0.074838]
[1730633463571,0.36529272,68495.0,68494.0,0.074838]
[1730633463780,0.51573829,68495.0,68494.0,0.074838]
[1730633463984,0.60290889,68495.0,68494.0,0.074838]
[1730633464911,0.51573829,68495.0,68494.0,0.074838]
[1730633465157,0.52973829,68495.0,68494.0,0.074838]
[1730633465642,0.63870154,68495.0,68494.0,0.074838]
[1730633466322,0.63868577,68495.0,68494.0,0.074838]
[1730633466536,0.52973331,68495.0,68494.0,0.074838]
[1730633467014,0.53173104,68495.0,68494.0,0.074838]
[1730633467523,0.76748694,68495.0,68494.0,0.05262046]
[1730633467762,0.63673104,68495.0,68494.0,0.03057795]
[1730633468243,0.1288,68493.0,68492.0,0.00165]
[1730633468452,0.45191857,68493.0,68492.0,0.00165]
[1730633468671,0.61236414,68493.0,68492.0,0.00165]
[1730633469391,0.61236414,68493.0,68489.0,0.001652]
[1730633469392,0.007,68490.0,68489.0,0.001652]
[1730633469624,0.41006076,68490.0,68489.0,0.001652]
[1730633469847,0.57050633,68490.0,68489.0,0.001652]
[1730633470087,0.6497925,68490.0,68489.0,0.001652]
[1730633472171,0.6777925,68490.0,68489.0,0.001652]
[1730633472401,0.58090707,68490.0,68489.0,0.001652]
[1730633472619,0.6439459,68490.0,68489.0,0.001652]
[1730633473078,0.6579459,68490.0,68489.0,0.001652]
[1730633473300,0.44410707,68490.0,68489.0,0.001652]
[1730633473593,0.53118454,68490.0,68489.0,0.001652]
[1730633473811,0.59518688,68490.0,68489.0,0.001652]
[1730633474457,0.58118688,68490.0,68489.0,0.001652]
[1730633474962,0.59518688,68490.0,68489.0,0.001652]
[1730633475206,0.60018688,68490.0,68489.0,0.001652]
[1730633475457,0.51310941,68490.0,68489.0,0.001652]
[1730633475691,0.49910941,68490.0,68489.0,0.001652]
[1730633475949,0.59394824,68490.0,68489.0,0.001652]
[1730633476157,0.56450941,68490.0,68489.0,0.001652]
[1730633476383,0.65050941,68490.0,68489.0,0.001652]
[1730633476836,0.65127984,68490.0,68489.0,0.001652]
[1730633477083,0.65119629,68490.0,68489.0,0.001652]
[1730633477541,0.7818189,68490.0,68489.0,0.001652]
[1730633477802,0.65119629,68490.0,68489.0,0.001652]
[1730633478010,0.63719629,68490.0,68489.0,0.001652]
[1730633478225,0.63719629,68490.0,68489.0,1.6e-05]
[1730633478473,0.66519629,68490.0,68489.0,1.6e-05]
[1730633478982,0.63719629,68490.0,68489.0,1.6e-05]
[1730633479228,0.66519629,68490.0,68489.0,1.6e-05]
[1730633479448,0.65119629,68490.0,68489.0,1.6e-05]
[1730633479662,0.63719629,68490.0,68489.0,1.6e-05]
[1730633479926,0.65119629,68490.0,68489.0,1.6e-05]
[1730633480102,0.67419629,68490.0,68489.0,1.6e-05]
[1730633480352,0.68819629,68490.0,68489.0,1.6e-05]
[1730633480597,0.66641368,68490.0,68489.0,1.6e-05]
[1730633480812,0.68816977,68490.0,68489.0,1.6e-05]
[1730633481252,0.52855303,68490.0,68489.0,1.6e-05]
[1730633481460,0.6594699,68490.0,68489.0,1.6e-05]
[1730633481667,0.6734699,68490.0,68489.0,1.6e-05]
[1730633481876,0.6874699,68490.0,68489.0,1.6e-05]
[1730633482098,0.6734699,68490.0,68489.0,1.6e-05]
[1730633482332,0.6594699,68490.0,68489.0,1.6e-05]
[1730633482566,0.6874699,68490.0,68489.0,1.6e-05]
[1730633483007,0.6594699,68490.0,68489.0,1.6e-05]
[1730633483226,0.6734699,68490.0,68489.0,1.6e-05]
[1730633484363,0.6734699,68490.0,68481.0,0.001636]
[1730633484364,0.1566,68482.0,68481.0,0.001636]
[1730633484580,0.57697391,68482.0,68481.0,0.001636]
[1730633484811,0.61232555,68482.0,68481.0,0.001636]
[1730633485484,0.59097391,68482.0,68481.0,0.001636]
[1730633485708,0.62632731,68482.0,68481.0,0.001636]
[1730633485933,0.61232731,68482.0,68481.0,0.001636]
[1730633486121,0.62632731,68482.0,68481.0,0.001636]
[1730633486368,0.64032731,68482.0,68481.0,0.001636]
[1730633486632,0.62632731,68482.0,68481.0,0.001636]
[1730633487304,0.64032731,68482.0,68481.0,0.001636]
[1730633487544,0.60497391,68482.0,68481.0,0.001636]
[1730633488217,0.60497391,68482.0,68481.0,2.617e-05]
[1730633488665,0.59097391,68482.0,68481.0,2.617e-05]
[1730633488917,0.60497391,68482.0,68481.0,2.617e-05]
[1730633489120,0.59097391,68482.0,68481.0,2.617e-05]
[1730633489587,0.59097391,68482.0,68474.0,0.0089097]
[1730633489588,0.002,68475.0,68474.0,0.0089097]
[1730633489807,0.53771391,68475.0,68474.0,0.0089097]
[1730633490249,0.53620199,68475.0,68474.0,0.0089097]
[1730633490696,0.57156784,68475.0,68474.0,0.0089097]
[1730633491796,0.59956784,68475.0,68474.0,0.0089097]
[1730633492007,0.67256582,68475.0,68474.0,0.0089097]
[1730633492433,0.78119917,68475.0,68474.0,0.0089097]
[1730633492649,0.67256582,68475.0,68474.0,0.0089097]
[1730633493280,0.78118576,68475.0,68474.0,0.0089097]
[1730633493895,0.74581991,68475.0,68474.0,0.0089097]
[1730633494078,0.77919081,68475.0,68474.0,0.0089097]
[1730633494325,0.63146587,68475.0,68474.0,0.0089097]
[1730633494504,0.63346587,68475.0,68474.0,0.0089097]
[1730633494912,0.54657087,68475.0,68474.0,0.0089097]
[1730633495130,0.63146587,68475.0,68474.0,0.0089097]
[1730633495337,0.53957087,68475.0,68474.0,0.0089097]
[1730633495558,0.54457087,68475.0,68474.0,0.0089097]
[1730633496375,0.4473375,68475.0,68474.0,0.0089097]
[1730633496581,0.4523375,68475.0,68474.0,0.0089097]
[1730633496919,0.54665365,68475.0,68474.0,0.0089097]
[1730633497548,0.61990269,68475.0,68474.0,0.0089097]
[1730633497771,0.67708951,68475.0,68474.0,0.0089097]
[1730633497986,0.69070537,68475.0,68474.0,0.0089097]
[1730633498184,0.688394,68475.0,68474.0,0.0089097]
[1730633499250,0.107,68474.0,68473.0,7.56e-05]
[1730633499455,0.5300474,68474.0,68473.0,7.56e-05]
[1730633500402,0.61695597,68474.0,68473.0,7.56e-05]
[1730633501030,0.59555473,68474.0,68473.0,7.56e-05]
[1730633501260,0.55805351,68474.0,68473.0,7.56e-05]
[1730633501497,0.64496208,68474.0,68473.0,7.56e-05]
[1730633502225,0.63996208,68474.0,68473.0,7.56e-05]
[1730633502436,0.55805351,68474.0,68473.0,7.56e-05]
[1730633503474,0.55806143,68474.0,68473.0,7.56e-05]
[1730633504321,0.66668137,68474.0,68473.0,7.56e-05]
[1730633504665,0.67486038,68474.0,68473.0,7.56e-05]
[1730633504866,0.66683507,68474.0,68473.0,7.56e-05]
[1730633507230,0.55807159,68474.0,68473.0,7.56e-05]
[1730633507459,0.84188351,68474.0,68473.0,7.56e-05]
[1730633507609,0.84188351,68474.0,68459.0,0.001652]
[1730633507610,0.0825,68464.0,68459.0,0.001652]
[1730633507816,0.38129966,68464.0,68459.0,0.001652]
[1730633508022,0.4299602,68464.0,68459.0,0.001652]
[1730633508218,0.42998777,68464.0,68459.0,0.001652]
[1730633508401,0.53498777,68464.0,68459.0,0.001652]
[1730633508634,0.6655804,68464.0,68459.0,0.001652]
[1730633508863,0.6655804,68464.0,68451.0,0.001652]
[1730633508864,0.002,68452.0,68451.0,0.001652]
[1730633509080,0.26375004,68452.0,68451.0,0.001652]
[1730633509321,0.69675712,68452.0,68451.0,0.001652]
[1730633509537,0.56617135,68452.0,68451.0,0.001652]
[1730633509742,0.002,68442.0,68440.0,0.00895469]
[1730633509967,0.18125004,68441.0,68440.0,0.0089097]
[1730633510373,0.24648707,68441.0,68440.0,0.0089097]
[1730633510583,0.22617958,68441.0,68440.0,0.0089097]
[1730633510799,0.29342682,68441.0,68440.0,0.0089097]
[1730633511222,0.30742682,68441.0,68440.0,0.0089097]
[1730633511440,0.30742682,68441.0,68429.0,0.21902447]
[1730633511441,0.002,68434.0,68429.0,0.21902447]
[1730633511701,0.002,68430.0,68429.0,0.21902447]
[1730633511885,0.19947844,68430.0,68429.0,0.21902447]
[1730633512092,0.19947844,68430.0,68421.0,0.0761]
[1730633512302,0.18115995,68429.0,68421.0,0.0761]
[1730633512504,0.03536291,68428.0,68421.0,0.0761]
[1730633512717,0.18115995,68427.0,68421.0,0.0761]
[1730633514957,0.18115995,68427.0,68420.0,0.050752]
[1730633514958,0.19515995,68427.0,68420.0,0.050752]
[1730633515399,0.20915995,68427.0,68420.0,0.050752]
[1730633515609,0.19515995,68427.0,68420.0,0.050752]
[1730633516081,0.20915995,68427.0,68420.0,0.050752]
[1730633516296,0.21973933,68427.0,68420.0,0.050752]
[1730633516513,0.22173933,68427.0,68420.0,0.050752]
[1730633516726,0.20573933,68427.0,68420.0,0.050752]
[1730633517230,0.22173933,68427.0,68420.0,0.001652]
[1730633517709,0.21973933,68427.0,68420.0,0.001652]
[1730633517965,0.21973933,68427.0,68409.0,0.21902447]
[1730633517966,0.005,68413.0,68409.0,0.21902447]
[1730633518196,0.18115995,68412.0,68409.0,0.21902447]
[1730633518429,0.03536291,68411.0,68406.0,0.0089097]
[1730633518644,0.18115995,68410.0,68406.0,0.0089097]
[1730633518870,0.02259683,68407.0,68406.0,0.0089097]
[1730633519091,0.20375678,68407.0,68406.0,0.0089097]
[1730633519339,0.20375678,68407.0,68406.0,0.1388097]
[1730633519340,0.03536291,68407.0,68406.0,0.1388097]
[1730633520828,0.01360112,68407.0,68406.0,0.1388097]
[1730633521266,0.04160112,68407.0,68406.0,0.1388097]
[1730633521470,0.02760112,68407.0,68406.0,0.1388097]
[1730633521672,0.02760112,68407.0,68406.0,0.14173312]
[1730633521673,0.02755286,68407.0,68406.0,0.14173312]
[1730633521891,0.02155286,68407.0,68406.0,0.14173312]
[1730633522579,0.03555286,68407.0,68406.0,0.14173312]
[1730633522778,0.02155286,68407.0,68406.0,0.14173312]
[1730633523006,0.02155286,68407.0,68406.0,0.1388097]
[1730633523449,0.01355286,68407.0,68406.0,0.1388097]
[1730633523662,0.02155286,68407.0,68406.0,0.1396287]
[1730633524116,0.01355286,68407.0,68406.0,0.1396287]
[1730633524362,0.02154489,68407.0,68406.0,0.1396287]
[1730633525971,0.02954489,68407.0,68406.0,0.1396287]
[1730633528007,0.02954583,68407.0,68406.0,0.1446287]
[1730633528269,0.02954583,68407.0,68406.0,0.15255207]
[1730633528551,0.016,68407.0,68406.0,0.1496287]
[1730633528775,0.016,68407.0,68406.0,0.29542574]
[1730633529249,0.008,68407.0,68406.0,0.29542574]
[1730633529490,0.008,68407.0,68406.0,0.31842574]
[1730633529491,0.016,68407.0,68406.0,0.31842574]
[1730633529741,0.016,68407.0,68406.0,0.32042574]
[1730633529943,0.21902447,68417.0,68416.0,0.1299]
[1730633530161,0.23257679,68417.0,68416.0,0.1299]
[1730633530408,0.01355232,68417.0,68416.0,0.1299]
[1730633530666,0.01355232,68417.0,68416.0,0.14282287]
[1730633530894,0.03522566,68433.0,68422.0,0.1299]
[1730633531180,0.21902447,68443.0,68423.0,0.00792247]
[1730633531181,0.21902447,68425.0,68423.0,0.00792247]
[1730633531417,0.02169628,68442.0,68426.0,0.005]
[1730633531683,0.02169628,68434.0,68427.0,0.00292242]
[1730633531922,0.01356341,68434.0,68427.0,0.00292242]
[1730633532161,0.02169628,68441.0,68428.0,0.1229]
[1730633532423,0.21902447,68443.0,68428.0,0.1229]
[1730633532424,0.008,68433.0,68429.0,0.00292242]
[1730633532634,0.01356334,68432.0,68429.0,0.00292242]
[1730633532894,0.01356334,68431.0,68428.0,0.1229]
[1730633533140,0.01356334,68430.0,68428.0,0.1229]
[1730633533385,0.21902447,68443.0,68428.0,0.1229]
[1730633533386,0.01356334,68429.0,68428.0,0.1229]
[1730633533617,0.03525962,68429.0,68428.0,0.1229]
[1730633534071,0.03525962,68429.0,68428.0,0.1239]
[1730633534280,0.03525962,68429.0,68428.0,0.001]
[1730633534486,0.03525962,68429.0,68427.0,0.001]
[1730633534696,0.01,68434.0,68427.0,0.001]
[1730633534937,0.21902447,68436.0,68422.0,0.005]
[1730633534938,0.01357975,68428.0,68422.0,0.005]
[1730633535151,0.01,68429.0,68422.0,0.005]
[1730633535152,0.0217276,68427.0,68422.0,0.005]
[1730633535390,0.03530735,68426.0,68422.0,0.005]
[1730633535614,0.01,68429.0,68426.0,0.005]
[1730633535820,0.02,68429.0,68428.0,0.0758]
[1730633536028,0.05533031,68429.0,68428.0,0.0808]
[1730633536694,0.04533031,68429.0,68428.0,0.0808]
[1730633537549,0.03533031,68429.0,68428.0,0.0808]
[1730633537759,0.04633031,68429.0,68428.0,0.0868]
[1730633538237,0.04633031,68429.0,68428.0,0.0878]
[1730633538238,0.05733031,68429.0,68428.0,0.0878]
[1730633540467,0.03558858,68429.0,68428.0,0.0878]
[1730633541095,0.05733031,68429.0,68428.0,0.0878]
[1730633541538,0.03558858,68429.0,68428.0,0.08775071]
[1730633541956,0.011,68429.0,68428.0,0.08675071]
[1730633542164,0.02760847,68429.0,68428.0,0.08675071]
[1730633542585,0.02760847,68429.0,68428.0,0.13385071]
[1730633542788,0.01660847,68429.0,68428.0,0.13285071]
[1730633543204,0.02060847,68429.0,68428.0,0.30164775]
[1730633543411,0.01760847,68429.0,68428.0,0.30164775]
[1730633544286,0.004,68429.0,68428.0,0.30164775]
[1730633544702,0.00164,68433.0,68432.0,0.1329]
[1730633544917,0.00164,68433.0,68432.0,0.281619]
[1730633545140,0.00164,68433.0,68432.0,0.27869704]
[1730633547270,0.00164,68433.0,68432.0,0.28269704]
[1730633547713,0.00164,68433.0,68432.0,0.27869704]
[1730633547934,0.00164,68433.0,68432.0,0.28269704]
[1730633549289,0.00164,68433.0,68432.0,0.28669704]
[1730633549761,0.00164,68433.0,68432.0,0.28269704]
[1730633550196,0.00164,68433.0,68432.0,0.27869704]
[1730633550415,0.00164,68433.0,68432.0,0.1409]
[1730633550920,0.00164,68433.0,68432.0,0.1329]
[1730633551145,0.01623799,68433.0,68432.0,0.2816191]
[1730633551386,0.01623799,68433.0,68432.0,0.27869704]
[1730633551650,0.01623799,68433.0,68432.0,0.30169704]
[1730633551875,0.01523799,68433.0,68432.0,0.30169704]
[1730633552310,0.00264,68433.0,68432.0,0.30169704]
[1730633552745,0.00164,68433.0,68432.0,0.30369704]
[1730633552968,0.00164,68433.0,68432.0,0.30169704]
[1730633553192,0.00164,68433.0,68432.0,0.30569704]
[1730633553413,0.00264,68433.0,68432.0,0.30569704]
[1730633553613,0.00164,68433.0,68432.0,0.30569704]
[1730633553825,0.00164,68433.0,68432.0,0.30169704]
[1730633554068,0.00164,68433.0,68432.0,0.30569704]
[1730633554311,0.00164,68433.0,68432.0,0.1369]
[1730633554751,0.00164,68433.0,68432.0,0.1409]
[1730633554962,0.00164,68433.0,68432.0,0.1369]
[1730633555461,0.00164,68433.0,68432.0,0.1409]
[1730633555950,0.01524789,68433.0,68432.0,0.1369]
[1730633556916,0.01724789,68433.0,68432.0,0.1329]
[1730633557388,0.01724789,68433.0,68432.0,0.30169704]
[1730633557621,0.01924789,68433.0,68432.0,0.30169704]
[1730633557857,0.01524789,68433.0,68432.0,0.30169704]
[1730633558079,0.00364,68433.0,68432.0,0.30169704]
[1730633558299,0.0152615,68433.0,68432.0,0.30169704]
[1730633559660,0.0172615,68433.0,68432.0,0.30169704]
[1730633559881,0.0172615,68433.0,68432.0,0.30933148]
[1730633560086,0.0152615,68433.0,68432.0,0.30533148]
[1730633560572,0.0152615,68433.0,68432.0,0.31333148]
[1730633560787,0.0152615,68433.0,68432.0,0.30933148]
[1730633561238,0.0152615,68433.0,68432.0,0.31333148]
[1730633561453,0.0152615,68433.0,68432.0,0.30933148]
[1730633561660,0.00164,68433.0,68432.0,0.31333148]
[1730633562705,0.00164,68433.0,68432.0,0.30933148]
[1730633562910,0.00164,68433.0,68432.0,0.30533148]
[1730633563174,0.00164,68433.0,68432.0,0.18279704]
[1730633563377,0.01527426,68433.0,68432.0,0.18679704]
[1730633563593,0.01527426,68433.0,68432.0,0.18279704]
[1730633564904,0.01527426,68433.0,68432.0,0.30659704]
[1730633565151,0.01527426,68433.0,68432.0,0.30259704]
[1730633569443,0.01528989,68433.0,68432.0,0.30259704]
[1730633569647,0.00164,68433.0,68432.0,0.30259704]
[1730633569858,0.01528987,68433.0,68432.0,0.30259704]
[1730633571564,0.03713829,68433.0,68432.0,0.30259704]
[1730633572879,0.00164,68433.0,68432.0,0.30259704]
[1730633573095,0.03715421,68433.0,68432.0,0.30259704]
[1730633573958,0.03715421,68433.0,68432.0,0.17879704]
[1730633574168,0.0371633,68433.0,68432.0,0.17879704]
[1730633574828,0.0371633,68433.0,68432.0,0.005]
[1730633575050,0.0371633,68433.0,68428.0,0.00082]
[1730633575269,0.0355233,68432.0,68430.0,0.005]
[1730633575499,0.00164,68433.0,68428.0,0.00082]
[1730633575500,0.0355233,68431.0,68428.0,0.00082]
[1730633575716,0.00164,68433.0,68429.0,0.005]
[1730633575717,0.0355233,68430.0,68429.0,0.005]
[1730633576206,0.0355233,68430.0,68429.0,0.01]
[1730633576418,0.00164,68433.0,68431.0,0.005]
[1730633576628,0.03551425,68432.0,68431.0,0.005]
[1730633577039,0.03551425,68432.0,68429.0,0.01]
[1730633577245,0.00164,68433.0,68431.0,0.005]
[1730633577476,0.03551003,68432.0,68431.0,0.005]
[1730633577685,0.00164,68433.0,68431.0,0.005]
[1730633577889,0.03551026,68432.0,68431.0,0.005]
[1730633578101,0.03551026,68432.0,68429.0,0.012]
[1730633578336,0.00164,68433.0,68431.0,0.005]
[1730633578566,0.03550685,68432.0,68429.0,0.005]
[1730633578779,0.03550685,68431.0,68429.0,0.01]
[1730633578988,0.00164,68433.0,68429.0,0.01]
[1730633578989,0.03550685,68430.0,68429.0,0.01]
[1730633579194,0.03550685,68430.0,68429.0,0.005]
[1730633579622,0.03550685,68430.0,68429.0,0.01]
[1730633579844,0.0355042,68430.0,68429.0,0.005]
[1730633580063,0.00164,68433.0,68428.0,0.00082]
[1730633580294,0.01365547,68430.0,68428.0,0.00082]
[1730633580512,0.02184875,68432.0,68428.0,0.00082]
[1730633580513,0.09135547,68429.0,68428.0,0.00082]